[Event "Titled Tuesday Blitz March 08 Late 2022"]
[White "Kushko, Dmitriy"]
[Black "Wartiovaara, Oliver"]
[WhiteFideId "14162261"]
[BlackFideId "513024"]
[WhiteElo "2225"]
[BlackElo "1971"]
[Result "1-0"]
[Round "06"]
[TimeControl "180+1"]
[Date "2022.03.09"]
[WhiteClock "0:00:07"]
[BlackClock "0:00:01"]

1. Nf3 {[%clk 0:03:00]}  Nf6 {[%clk 0:02:59]} 2. g3 {[%clk 0:03:00]}  g6 {[%clk 0:02:59]} 3. Bg2 {[%clk 0:03:01]}  Bg7 {[%clk 0:03:00]} 4. c4 {[%clk 0:03:01]}  O-O {[%clk 0:03:01]} 5. O-O {[%clk 0:03:01]}  d6 {[%clk 0:03:02]} 6. d4 {[%clk 0:03:02]}  Nc6 {[%clk 0:03:02]} 7. Nc3 {[%clk 0:03:02]}  e5 {[%clk 0:03:02]} 8. d5 {[%clk 0:03:02]}  Nb8 {[%clk 0:03:01]} 9. e4 {[%clk 0:03:03]}  a5 {[%clk 0:03:01]} 10. Bg5 {[%clk 0:03:01]}  h6 {[%clk 0:02:59]} 11. Be3 {[%clk 0:02:50]}  Nfd7 {[%clk 0:02:58]} 12. Qd2 {[%clk 0:02:47]}  Kh7 {[%clk 0:02:58]} 13. h4 {[%clk 0:02:41]}  Na6 {[%clk 0:02:39]} 14. Nh2 {[%clk 0:02:21]}  Nac5 {[%clk 0:02:36]} 15. h5 {[%clk 0:02:16]}  gxh5 {[%clk 0:02:23]} 16. Nf3 {[%clk 0:02:15]}  Nf6 {[%clk 0:02:19]} 17. Bxc5 {[%clk 0:02:09]}  dxc5 {[%clk 0:02:20]} 18. Nxe5 {[%clk 0:02:08]}  Nxd5 {[%clk 0:02:09]} 19. Nxf7 {[%clk 0:01:49]}  Rxf7 {[%clk 0:02:05]} 20. cxd5 {[%clk 0:01:47]}  Bd4 {[%clk 0:02:00]} 21. Ne2 {[%clk 0:01:25]}  Qf6 {[%clk 0:01:27]} 22. Nxd4 {[%clk 0:01:23]}  cxd4 {[%clk 0:01:25]} 23. f4 {[%clk 0:01:22]}  c5 {[%clk 0:01:25]} 24. dxc6 {[%clk 0:01:12]}  bxc6 {[%clk 0:01:24]} 25. e5 {[%clk 0:01:12]}  Qg6 {[%clk 0:01:24]} 26. Kh2 {[%clk 0:00:53]}  Rb8 {[%clk 0:01:20]} 27. Qxd4 {[%clk 0:00:51]}  Rg7 {[%clk 0:01:12]} 28. Qf2 {[%clk 0:00:43]}  c5 {[%clk 0:00:36]} 29. f5 {[%clk 0:00:40]}  Qg4 {[%clk 0:00:32]} 30. e6 {[%clk 0:00:27]}  h4 {[%clk 0:00:23]} 31. gxh4 {[%clk 0:00:18]}  Rxb2 {[%clk 0:00:15]} 32. Qxb2 {[%clk 0:00:18]}  Qxh4+ {[%clk 0:00:15]} 33. Kg1 {[%clk 0:00:11]}  Bb7 {[%clk 0:00:15]} 34. Rf2 {[%clk 0:00:04]}  Bxg2 {[%clk 0:00:04]} 35. Rxg2 {[%clk 0:00:04]}  Rxg2+ {[%clk 0:00:02]} 36. Kxg2 {[%clk 0:00:05]}  Qg4+ {[%clk 0:00:02]} 37. Kf2 {[%clk 0:00:05]}  Qxf5+ {[%clk 0:00:02]} 38. Ke2 {[%clk 0:00:06]}  Qxe6+ {[%clk 0:00:02]} 39. Kd2 {[%clk 0:00:06]}  Qd5+ {[%clk 0:00:02]} 40. Kc1 {[%clk 0:00:06]}  Qh1+ {[%clk 0:00:02]} 41. Kc2 {[%clk 0:00:07]}  Qg2+ {[%clk 0:00:01]} 42. Kb3 {[%clk 0:00:07]}  Qd5+ {[%clk 0:00:01]} 43. Ka4 {[%clk 0:00:07]}  Qc6+ {[%clk 0:00:01]} 44. Qb5 {[%clk 0:00:07]} 1-0


[Site "https://www.chess.com"]

[Event "Titled Tuesday Blitz March 08 Late 2022"]
[White "Leiva, Gianmarco"]
[Black "orkinyo12345"]
[WhiteFideId "3804399"]
[WhiteElo "2311"]
[BlackElo "2518"]
[Result "0-1"]
[Round "06"]
[TimeControl "180+1"]
[Date "2022.03.08"]
[WhiteClock "0:00:02"]
[BlackClock "0:00:01"]

1. e4 {[%clk 0:03:00]}  c5 {[%clk 0:02:57]} 2. Nf3 {[%clk 0:03:00]}  d6 {[%clk 0:02:56]} 3. c3 {[%clk 0:02:56]}  Nf6 {[%clk 0:02:55]} 4. h3 {[%clk 0:02:53]}  g6 {[%clk 0:02:53]} 5. Be2 {[%clk 0:02:45]}  Bg7 {[%clk 0:02:49]} 6. O-O {[%clk 0:02:45]}  O-O {[%clk 0:02:49]} 7. d3 {[%clk 0:02:45]}  b5 {[%clk 0:02:47]} 8. Nbd2 {[%clk 0:02:44]}  Nc6 {[%clk 0:02:42]} 9. d4 {[%clk 0:02:39]}  Rb8 {[%clk 0:02:27]} 10. d5 {[%clk 0:02:34]}  Na5 {[%clk 0:02:25]} 11. Rb1 {[%clk 0:01:57]}  e6 {[%clk 0:02:09]} 12. b4 {[%clk 0:01:57]}  cxb4 {[%clk 0:02:01]} 13. cxb4 {[%clk 0:01:57]}  Nc4 {[%clk 0:02:01]} 14. Nxc4 {[%clk 0:01:57]}  bxc4 {[%clk 0:02:00]} 15. Bxc4 {[%clk 0:01:58]}  Nxe4 {[%clk 0:01:52]} 16. Bb2 {[%clk 0:01:58]}  Bxb2 {[%clk 0:01:26]} 17. Rxb2 {[%clk 0:01:59]}  e5 {[%clk 0:01:27]} 18. Qa4 {[%clk 0:01:29]}  Qb6 {[%clk 0:01:04]} 19. Re1 {[%clk 0:01:23]}  Nf6 {[%clk 0:00:51]} 20. a3 {[%clk 0:01:01]}  Bf5 {[%clk 0:00:45]} 21. Nh4 {[%clk 0:00:48]}  Bd7 {[%clk 0:00:40]} 22. Qd1 {[%clk 0:00:48]}  Rfc8 {[%clk 0:00:38]} 23. Bf1 {[%clk 0:00:39]}  a5 {[%clk 0:00:33]} 24. Qd2 {[%clk 0:00:33]}  axb4 {[%clk 0:00:22]} 25. axb4 {[%clk 0:00:34]}  Bb5 {[%clk 0:00:14]} 26. Qg5 {[%clk 0:00:10]}  Qd8 {[%clk 0:00:11]} 27. Nf5 {[%clk 0:00:07]}  Nxd5 {[%clk 0:00:10]} 28. Qd2 {[%clk 0:00:02]}  Bxf1 {[%clk 0:00:06]} 29. Rxf1 {[%clk 0:00:02]}  Nxb4 {[%clk 0:00:01]} 30. Nh6+ {[%clk 0:00:02]}  Kg7 {[%clk 0:00:01]} 0-1


[Site "https://www.chess.com"]

[Event "Titled Tuesday Blitz March 08 Late 2022"]
[White "Makarian, Rudik"]
[Black "Martirosyan, Haik M."]
[WhiteFideId "44105681"]
[BlackFideId "13306553"]
[WhiteElo "2388"]
[BlackElo "2735"]
[Result "0-1"]
[Round "06"]
[TimeControl "180+1"]
[Date "2022.03.08"]
[WhiteClock "0:00:10"]
[BlackClock "0:00:39"]

1. d4 {[%clk 0:03:00]}  d5 {[%clk 0:02:57]} 2. c4 {[%clk 0:03:01]}  c6 {[%clk 0:02:58]} 3. Nf3 {[%clk 0:03:01]}  Nf6 {[%clk 0:02:56]} 4. Nc3 {[%clk 0:03:02]}  e6 {[%clk 0:02:55]} 5. Bg5 {[%clk 0:03:02]}  h6 {[%clk 0:02:54]} 6. Bh4 {[%clk 0:03:01]}  dxc4 {[%clk 0:02:52]} 7. e4 {[%clk 0:03:01]}  g5 {[%clk 0:02:53]} 8. Bg3 {[%clk 0:03:01]}  b5 {[%clk 0:02:54]} 9. h4 {[%clk 0:03:02]}  g4 {[%clk 0:02:47]} 10. Ne5 {[%clk 0:03:02]}  h5 {[%clk 0:02:44]} 11. Be2 {[%clk 0:03:01]}  Bg7 {[%clk 0:02:44]} 12. O-O {[%clk 0:03:00]}  Bb7 {[%clk 0:02:40]} 13. Rb1 {[%clk 0:02:56]}  Nbd7 {[%clk 0:02:35]} 14. b3 {[%clk 0:02:55]}  Nxe5 {[%clk 0:02:19]} 15. Bxe5 {[%clk 0:02:56]}  cxb3 {[%clk 0:02:15]} 16. Qxb3 {[%clk 0:02:57]}  O-O {[%clk 0:02:11]} 17. Rfd1 {[%clk 0:02:53]}  a6 {[%clk 0:02:10]} 18. g3 {[%clk 0:02:32]}  Qe7 {[%clk 0:02:05]} 19. Bxf6 {[%clk 0:02:21]}  Qxf6 {[%clk 0:02:01]} 20. e5 {[%clk 0:02:21]}  Qe7 {[%clk 0:01:47]} 21. Ne4 {[%clk 0:02:21]}  c5 {[%clk 0:01:47]} 22. Nxc5 {[%clk 0:02:21]}  Bd5 {[%clk 0:01:47]} 23. Qe3 {[%clk 0:02:21]}  f5 {[%clk 0:01:40]} 24. f4 {[%clk 0:01:51]}  Rfd8 {[%clk 0:01:35]} 25. Rb2 {[%clk 0:01:48]}  Bf8 {[%clk 0:01:34]} 26. Bf1 {[%clk 0:01:39]}  Bf3 {[%clk 0:01:25]} 27. Rc1 {[%clk 0:01:34]}  Rd5 {[%clk 0:01:19]} 28. Bg2 {[%clk 0:01:32]}  Bxg2 {[%clk 0:01:19]} 29. Kxg2 {[%clk 0:01:32]}  Rad8 {[%clk 0:01:20]} 30. Rd2 {[%clk 0:01:16]}  a5 {[%clk 0:01:10]} 31. Qb3 {[%clk 0:01:02]}  b4 {[%clk 0:01:10]} 32. Qc4 {[%clk 0:00:58]}  Rxc5 {[%clk 0:01:01]} 33. dxc5 {[%clk 0:00:52]}  Rxd2+ {[%clk 0:01:01]} 34. Kh1 {[%clk 0:00:51]}  Rd5 {[%clk 0:00:59]} 35. c6 {[%clk 0:00:51]}  Qc7 {[%clk 0:00:59]} 36. Kh2 {[%clk 0:00:43]}  Be7 {[%clk 0:00:53]} 37. Qa6 {[%clk 0:00:22]}  Kf7 {[%clk 0:00:53]} 38. Qa8 {[%clk 0:00:17]}  Qb6 {[%clk 0:00:41]} 39. Qh8 {[%clk 0:00:10]}  Qf2+ {[%clk 0:00:40]} 40. Kh1 {[%clk 0:00:10]}  Qf3+ {[%clk 0:00:41]} 41. Kg1 {[%clk 0:00:11]}  Qxg3+ {[%clk 0:00:41]} 42. Kh1 {[%clk 0:00:11]}  Qxh4+ {[%clk 0:00:41]} 43. Kg1 {[%clk 0:00:11]}  Bc5+ {[%clk 0:00:39]} 44. Rxc5 {[%clk 0:00:10]}  Rd1+ {[%clk 0:00:39]} 0-1


[Site "https://www.chess.com"]

[Event "Titled Tuesday Blitz March 08 Late 2022"]
[White "Maranhao,Jose Renato Ruiz"]
[Black "Desideri, Ricardo Maruchi"]
[WhiteFideId "2135175"]
[BlackFideId "2110440"]
[WhiteElo "1970"]
[BlackElo "1945"]
[Result "1-0"]
[Round "06"]
[TimeControl "180+1"]
[Date "2022.03.09"]
[WhiteClock "0:00:07"]
[BlackClock "0:00:01"]

1. e4 {[%clk 0:02:52]}  c5 {[%clk 0:02:56]} 2. d4 {[%clk 0:02:53]}  cxd4 {[%clk 0:02:55]} 3. c3 {[%clk 0:02:53]}  d5 {[%clk 0:02:50]} 4. exd5 {[%clk 0:02:45]}  Qxd5 {[%clk 0:02:48]} 5. cxd4 {[%clk 0:02:45]}  e6 {[%clk 0:02:46]} 6. Nc3 {[%clk 0:02:45]}  Bb4 {[%clk 0:02:46]} 7. Nf3 {[%clk 0:02:45]}  Nc6 {[%clk 0:02:43]} 8. Bd3 {[%clk 0:02:38]}  Nf6 {[%clk 0:02:15]} 9. O-O {[%clk 0:02:38]}  Qd8 {[%clk 0:02:11]} 10. a3 {[%clk 0:02:19]}  Be7 {[%clk 0:02:03]} 11. Re1 {[%clk 0:02:06]}  O-O {[%clk 0:02:01]} 12. Bg5 {[%clk 0:02:03]}  a6 {[%clk 0:01:58]} 13. Rc1 {[%clk 0:02:02]}  Nd5 {[%clk 0:01:43]} 14. Bxe7 {[%clk 0:01:59]}  Ndxe7 {[%clk 0:01:43]} 15. Bxh7+ {[%clk 0:01:53]}  Kxh7 {[%clk 0:01:33]} 16. Ng5+ {[%clk 0:01:53]}  Kg6 {[%clk 0:01:33]} 17. Qg4 {[%clk 0:00:59]}  f5 {[%clk 0:01:28]} 18. Qg3 {[%clk 0:00:53]}  Kf6 {[%clk 0:01:20]} 19. Nh7+ {[%clk 0:00:22]}  Kf7 {[%clk 0:01:16]} 20. Nxf8 {[%clk 0:00:23]}  Kxf8 {[%clk 0:01:16]} 21. Rcd1 {[%clk 0:00:16]}  Nd5 {[%clk 0:01:06]} 22. Qg6 {[%clk 0:00:11]}  Nce7 {[%clk 0:01:02]} 23. Qh7 {[%clk 0:00:11]}  Kf7 {[%clk 0:01:00]} 24. Qh5+ {[%clk 0:00:09]}  Kg8 {[%clk 0:00:55]} 25. Rd3 {[%clk 0:00:08]}  Nf6 {[%clk 0:00:46]} 26. Qh4 {[%clk 0:00:07]}  Qe8 {[%clk 0:00:34]} 27. Rh3 {[%clk 0:00:07]}  Ng6 {[%clk 0:00:32]} 28. Qg5 {[%clk 0:00:06]}  Kf7 {[%clk 0:00:28]} 29. d5 {[%clk 0:00:03]}  Qe7 {[%clk 0:00:14]} 30. Rg3 {[%clk 0:00:03]}  Ng4 {[%clk 0:00:14]} 31. Qxe7+ {[%clk 0:00:02]}  Nxe7 {[%clk 0:00:14]} 32. h3 {[%clk 0:00:03]}  Nf6 {[%clk 0:00:12]} 33. d6 {[%clk 0:00:03]}  Ned5 {[%clk 0:00:11]} 34. Nxd5 {[%clk 0:00:03]}  Nxd5 {[%clk 0:00:10]} 35. Rc1 {[%clk 0:00:04]}  Bd7 {[%clk 0:00:10]} 36. b4 {[%clk 0:00:02]}  Bc6 {[%clk 0:00:10]} 37. a4 {[%clk 0:00:02]}  Rd8 {[%clk 0:00:10]} 38. b5 {[%clk 0:00:02]}  axb5 {[%clk 0:00:08]} 39. axb5 {[%clk 0:00:03]}  Bd7 {[%clk 0:00:08]} 40. Rb3 {[%clk 0:00:04]}  Be8 {[%clk 0:00:07]} 41. Ra1 {[%clk 0:00:03]}  Rxd6 {[%clk 0:00:07]} 42. Ra7 {[%clk 0:00:04]}  Rd8 {[%clk 0:00:05]} 43. b6 {[%clk 0:00:05]}  Bc6 {[%clk 0:00:04]} 44. g4 {[%clk 0:00:05]}  fxg4 {[%clk 0:00:04]} 45. hxg4 {[%clk 0:00:06]}  Kg6 {[%clk 0:00:03]} 46. f3 {[%clk 0:00:06]}  Re8 {[%clk 0:00:03]} 47. Kf2 {[%clk 0:00:07]}  Rf8 {[%clk 0:00:03]} 48. Rb1 {[%clk 0:00:07]}  Rf4 {[%clk 0:00:04]} 49. Rb3 {[%clk 0:00:08]}  Rd4 {[%clk 0:00:04]} 50. Raa3 {[%clk 0:00:07]}  Rd2+ {[%clk 0:00:03]} 51. Kg3 {[%clk 0:00:08]}  Rd4 {[%clk 0:00:03]} 52. Rd3 {[%clk 0:00:08]}  Rxd3 {[%clk 0:00:02]} 53. Rxd3 {[%clk 0:00:08]}  Kf6 {[%clk 0:00:02]} 54. Rb3 {[%clk 0:00:09]}  g6 {[%clk 0:00:02]} 55. f4 {[%clk 0:00:09]}  g5 {[%clk 0:00:01]} 56. fxg5+ {[%clk 0:00:09]}  Kxg5 {[%clk 0:00:01]} 57. Rf3 {[%clk 0:00:07]}  Kg6 {[%clk 0:00:02]} 58. Rf8 {[%clk 0:00:07]}  e5 {[%clk 0:00:01]} 59. Rd8 {[%clk 0:00:07]}  e4 {[%clk 0:00:01]} 60. Rd6+ {[%clk 0:00:07]} 1-0


[Site "https://www.chess.com"]

[Event "Titled Tuesday Blitz March 08 Late 2022"]
[White "Martins, Carlos"]
[Black "Clawitter, Craig"]
[WhiteFideId "2101688"]
[BlackFideId "2023105"]
[WhiteElo "2183"]
[BlackElo "2260"]
[Result "1-0"]
[Round "06"]
[TimeControl "180+1"]
[Date "2022.03.09"]
[WhiteClock "0:00:46"]
[BlackClock "0:00:02"]

1. e4 {[%clk 0:02:58]}  e6 {[%clk 0:02:59]} 2. d4 {[%clk 0:02:57]}  d5 {[%clk 0:03:00]} 3. Nc3 {[%clk 0:02:57]}  Bb4 {[%clk 0:03:00]} 4. e5 {[%clk 0:02:57]}  c5 {[%clk 0:03:00]} 5. Bd2 {[%clk 0:02:57]}  Nh6 {[%clk 0:02:59]} 6. a3 {[%clk 0:02:56]}  Bxc3 {[%clk 0:02:59]} 7. Bxc3 {[%clk 0:02:56]}  Nf5 {[%clk 0:02:57]} 8. Nf3 {[%clk 0:02:53]}  cxd4 {[%clk 0:02:47]} 9. Nxd4 {[%clk 0:02:52]}  Nxd4 {[%clk 0:02:47]} 10. Qxd4 {[%clk 0:02:52]}  Nc6 {[%clk 0:02:43]} 11. Bb5 {[%clk 0:02:28]}  O-O {[%clk 0:02:41]} 12. Qf4 {[%clk 0:02:21]}  Bd7 {[%clk 0:02:26]} 13. O-O-O {[%clk 0:02:09]}  Rc8 {[%clk 0:02:16]} 14. Rhe1 {[%clk 0:01:57]}  Qb6 {[%clk 0:01:41]} 15. Bd3 {[%clk 0:01:46]}  Na5 {[%clk 0:01:31]} 16. Bd4 {[%clk 0:01:37]}  Nb3+ {[%clk 0:01:22]} 17. Kb1 {[%clk 0:01:33]}  Nxd4 {[%clk 0:01:22]} 18. Re3 {[%clk 0:01:27]}  Nf5 {[%clk 0:01:06]} 19. Rh3 {[%clk 0:01:27]}  h6 {[%clk 0:00:19]} 20. g4 {[%clk 0:01:16]}  Ne7 {[%clk 0:00:14]} 21. Rxh6 {[%clk 0:01:00]}  gxh6 {[%clk 0:00:10]} 22. Qxh6 {[%clk 0:01:00]}  Ng6 {[%clk 0:00:05]} 23. Bxg6 {[%clk 0:00:56]}  fxg6 {[%clk 0:00:06]} 24. Qxg6+ {[%clk 0:00:56]}  Kh8 {[%clk 0:00:06]} 25. Rd3 {[%clk 0:00:48]}  Qxf2 {[%clk 0:00:02]} 26. Rh3+ {[%clk 0:00:46]}  Qh4 {[%clk 0:00:02]} 27. Rxh4# {[%clk 0:00:46]} 1-0


[Site "https://www.chess.com"]

[Event "Titled Tuesday Blitz March 08 Late 2022"]
[White "Miszler, Levente"]
[Black "Hamitevici, Vladimir"]
[WhiteFideId "763276"]
[BlackFideId "13902393"]
[WhiteElo "2399"]
[BlackElo "2604"]
[Result "0-1"]
[Round "06"]
[TimeControl "180+1"]
[Date "2022.03.09"]
[WhiteClock "0:00:16"]
[BlackClock "0:00:34"]

1. Nf3 {[%clk 0:02:57]}  g6 {[%clk 0:02:57]} 2. c4 {[%clk 0:02:56]}  Bg7 {[%clk 0:02:58]} 3. g3 {[%clk 0:02:57]}  b6 {[%clk 0:02:57]} 4. Bg2 {[%clk 0:02:57]}  Bb7 {[%clk 0:02:57]} 5. O-O {[%clk 0:02:58]}  Nf6 {[%clk 0:02:58]} 6. Nc3 {[%clk 0:02:58]}  Ne4 {[%clk 0:02:57]} 7. Nxe4 {[%clk 0:02:55]}  Bxe4 {[%clk 0:02:58]} 8. d3 {[%clk 0:02:56]}  Bb7 {[%clk 0:02:58]} 9. Rb1 {[%clk 0:02:55]}  c5 {[%clk 0:02:58]} 10. b3 {[%clk 0:02:55]}  O-O {[%clk 0:02:58]} 11. Qc2 {[%clk 0:02:55]}  Nc6 {[%clk 0:02:57]} 12. Bb2 {[%clk 0:02:55]}  Nb4 {[%clk 0:02:57]} 13. Qd2 {[%clk 0:02:55]}  d5 {[%clk 0:02:46]} 14. a3 {[%clk 0:02:50]}  Nc6 {[%clk 0:02:43]} 15. Bxg7 {[%clk 0:02:49]}  Kxg7 {[%clk 0:02:44]} 16. cxd5 {[%clk 0:02:48]}  Qxd5 {[%clk 0:02:45]} 17. b4 {[%clk 0:02:47]}  cxb4 {[%clk 0:02:36]} 18. axb4 {[%clk 0:02:48]}  Nd4 {[%clk 0:02:27]} 19. Qb2 {[%clk 0:02:42]}  e5 {[%clk 0:02:27]} 20. Ne1 {[%clk 0:02:36]}  Qd7 {[%clk 0:02:26]} 21. Bxb7 {[%clk 0:02:36]}  Qxb7 {[%clk 0:02:27]} 22. e3 {[%clk 0:02:35]}  Nf5 {[%clk 0:02:11]} 23. Qxe5+ {[%clk 0:02:32]}  Kg8 {[%clk 0:02:09]} 24. e4 {[%clk 0:02:26]}  Rfe8 {[%clk 0:02:08]} 25. Qb2 {[%clk 0:02:22]}  Nd6 {[%clk 0:02:00]} 26. Nf3 {[%clk 0:02:21]}  Rad8 {[%clk 0:01:58]} 27. Rfc1 {[%clk 0:02:20]}  Nb5 {[%clk 0:01:57]} 28. Ne5 {[%clk 0:01:58]}  Rd4 {[%clk 0:01:49]} 29. Ng4 {[%clk 0:01:57]}  Qe7 {[%clk 0:01:42]} 30. Rc4 {[%clk 0:01:53]}  Red8 {[%clk 0:01:37]} 31. Rbc1 {[%clk 0:01:49]}  h5 {[%clk 0:01:36]} 32. Rxd4 {[%clk 0:01:49]}  Nxd4 {[%clk 0:01:18]} 33. Ne3 {[%clk 0:01:08]}  Qf6 {[%clk 0:01:18]} 34. Rb1 {[%clk 0:00:41]}  Nf3+ {[%clk 0:01:08]} 35. Kg2 {[%clk 0:00:38]}  Ne1+ {[%clk 0:00:57]} 36. Kf1 {[%clk 0:00:36]}  Qxb2 {[%clk 0:00:57]} 37. Rxb2 {[%clk 0:00:36]}  Nxd3 {[%clk 0:00:57]} 38. Rd2 {[%clk 0:00:30]}  Kf8 {[%clk 0:00:55]} 39. b5 {[%clk 0:00:24]}  Rd7 {[%clk 0:00:38]} 40. Nd5 {[%clk 0:00:22]}  Nc5 {[%clk 0:00:38]} 41. f3 {[%clk 0:00:21]}  f5 {[%clk 0:00:35]} 42. Ke2 {[%clk 0:00:20]}  fxe4 {[%clk 0:00:35]} 43. fxe4 {[%clk 0:00:20]}  Nxe4 {[%clk 0:00:35]} 44. Ke3 {[%clk 0:00:16]}  Nxd2 {[%clk 0:00:34]} 0-1


[Site "https://www.chess.com"]

[Event "Titled Tuesday Blitz March 08 Late 2022"]
[White "Moral Garcia, Serafin"]
[Black "Kim, Sergey"]
[WhiteFideId "2201925"]
[BlackFideId "13700570"]
[WhiteElo "2446"]
[BlackElo "2547"]
[Result "0-1"]
[Round "06"]
[TimeControl "180+1"]
[Date "2022.03.09"]
[WhiteClock "0:00:22"]
[BlackClock "0:00:57"]

1. c4 {[%clk 0:03:00]}  Nf6 {[%clk 0:02:59]} 2. Nc3 {[%clk 0:03:00]}  g6 {[%clk 0:02:59]} 3. g3 {[%clk 0:02:59]}  d6 {[%clk 0:03:00]} 4. Bg2 {[%clk 0:02:59]}  Bg7 {[%clk 0:03:00]} 5. d3 {[%clk 0:02:59]}  O-O {[%clk 0:03:01]} 6. Rb1 {[%clk 0:02:59]}  e5 {[%clk 0:03:01]} 7. b4 {[%clk 0:02:59]}  Nh5 {[%clk 0:03:01]} 8. e3 {[%clk 0:02:57]}  f5 {[%clk 0:03:01]} 9. Nge2 {[%clk 0:02:57]}  Nc6 {[%clk 0:02:59]} 10. b5 {[%clk 0:02:55]}  Ne7 {[%clk 0:02:59]} 11. O-O {[%clk 0:02:55]}  g5 {[%clk 0:02:58]} 12. d4 {[%clk 0:02:47]}  e4 {[%clk 0:02:55]} 13. d5 {[%clk 0:02:41]}  Ng6 {[%clk 0:02:49]} 14. Nd4 {[%clk 0:02:36]}  Nf6 {[%clk 0:02:49]} 15. a4 {[%clk 0:02:25]}  Ne5 {[%clk 0:02:45]} 16. Qe2 {[%clk 0:02:18]}  g4 {[%clk 0:02:45]} 17. a5 {[%clk 0:02:15]}  Nf3+ {[%clk 0:02:42]} 18. Kh1 {[%clk 0:02:13]}  Nd7 {[%clk 0:02:37]} 19. h4 {[%clk 0:02:02]}  Nxd4 {[%clk 0:02:28]} 20. exd4 {[%clk 0:02:02]}  Bxd4 {[%clk 0:02:28]} 21. Qc2 {[%clk 0:01:59]}  Bg7 {[%clk 0:02:25]} 22. Ne2 {[%clk 0:01:56]}  Ne5 {[%clk 0:02:23]} 23. Nf4 {[%clk 0:01:36]}  Qe7 {[%clk 0:02:18]} 24. Nh5 {[%clk 0:01:29]}  Bh8 {[%clk 0:02:15]} 25. Bh6 {[%clk 0:01:24]}  Re8 {[%clk 0:02:11]} 26. b6 {[%clk 0:01:19]}  cxb6 {[%clk 0:02:06]} 27. axb6 {[%clk 0:01:20]}  a6 {[%clk 0:02:06]} 28. Rfc1 {[%clk 0:01:14]}  Nd3 {[%clk 0:02:01]} 29. Rd1 {[%clk 0:01:11]}  Bd7 {[%clk 0:01:59]} 30. Nf4 {[%clk 0:01:06]}  Ne5 {[%clk 0:01:50]} 31. c5 {[%clk 0:01:03]}  dxc5 {[%clk 0:01:46]} 32. d6 {[%clk 0:01:03]}  Qf7 {[%clk 0:01:45]} 33. Qxc5 {[%clk 0:01:01]}  Rac8 {[%clk 0:01:42]} 34. Qa5 {[%clk 0:01:00]}  Rc6 {[%clk 0:01:25]} 35. Bf1 {[%clk 0:00:53]}  Rec8 {[%clk 0:01:23]} 36. Rb2 {[%clk 0:00:42]}  Nc4 {[%clk 0:01:19]} 37. Bxc4 {[%clk 0:00:41]}  Rxc4 {[%clk 0:01:20]} 38. Nd5 {[%clk 0:00:40]}  Bxb2 {[%clk 0:01:16]} 39. Ne7+ {[%clk 0:00:38]}  Kh8 {[%clk 0:01:16]} 40. Nxc8 {[%clk 0:00:37]}  Rxc8 {[%clk 0:01:15]} 41. Qb4 {[%clk 0:00:30]}  Bf6 {[%clk 0:01:12]} 42. Qd2 {[%clk 0:00:28]}  Qc4 {[%clk 0:01:06]} 43. Qf4 {[%clk 0:00:28]}  Qe2 {[%clk 0:00:57]} 44. Rb1 {[%clk 0:00:22]}  Qf3+ {[%clk 0:00:57]} 0-1


[Site "https://www.chess.com"]